[Event "MCR rapid mládeže 2023 U16"]
[Site "Harachov, Czech Republic"]
[Date "2023.09.09"]
[Round "5.16"]
[White "Frantsev, Iegor"]
[Black "Svadlenka, Michal"]
[Result "0-1"]
[TimeControl "20min+5s/move"]
[WhiteElo "1431"]
[BlackElo "1451"]

1. e4 {[%clk 00:20:07]} {[%emt 00:00:01]} c5 {[%clk 00:20:08]} {[%emt
00:00:03]} 2. Nc3 {[%clk 00:20:09]} {[%emt 00:00:02]} d6 {[%clk 00:20:12]}
{[%emt 00:00:02]} 3. f4 {[%clk 00:20:11]} {[%emt 00:00:02]} Nc6 {[%clk
00:20:10]} {[%emt 00:00:08]} 4. Nf3 {[%clk 00:20:13]} {[%emt 00:00:03]} g6
{[%clk 00:20:14]} 5. Bb5 {[%clk 00:19:56]} {[%emt 00:00:23]} Bg7 {[%clk
00:20:16]} {[%emt 00:00:03]} 6. d3 {[%clk 00:19:55]} {[%emt 00:00:06]} Bd7
{[%clk 00:20:03]} {[%emt 00:00:19]} 7. O-O {[%clk 00:19:45]} {[%emt 00:00:14]}
e6 {[%clk 00:19:58]} {[%emt 00:00:10]} 8. Qe1 {[%clk 00:19:41]} {[%emt
00:00:07]} Nge7 {[%clk 00:19:59]} {[%emt 00:00:06]} 9. Qg3 {[%clk 00:18:34]}
{[%emt 00:01:11]} a6 {[%clk 00:19:44]} {[%emt 00:00:21]} 10. Bxc6 {[%clk
00:18:23]} {[%emt 00:00:15]} Bxc6 {[%clk 00:19:47]} {[%emt 00:00:03]} 11. Nh4
{[%clk 00:13:45]} {[%emt 00:04:41]} O-O {[%clk 00:19:40]} {[%emt 00:00:13]} 12.
f5 {[%clk 00:13:32]} {[%emt 00:00:19]} exf5 {[%clk 00:17:51]} {[%emt 00:01:55]}
13. exf5 {[%clk 00:13:24]} {[%emt 00:00:12]} Nd5 {[%clk 00:14:02]} {[%emt
00:03:55]} 14. Nxd5 {[%clk 00:08:14]} {[%emt 00:05:14]} Bxd5 {[%clk 00:14:06]}
{[%emt 00:00:02]} 15. c4 {[%clk 00:08:03]} {[%emt 00:00:15]} Bc6 {[%clk
00:13:55]} {[%emt 00:00:15]} 16. Bg5 {[%clk 00:06:24]} {[%emt 00:01:42]} f6
{[%clk 00:08:59]} {[%emt 00:05:04]} 17. Bd2 {[%clk 00:05:18]} {[%emt 00:01:11]}
g5 {[%clk 00:09:01]} {[%emt 00:00:03]} 18. Nf3 {[%clk 00:05:12]} {[%emt
00:00:10]} Re8 {[%clk 00:08:46]} {[%emt 00:00:22]} 19. Rfe1 {[%clk 00:04:35]}
{[%emt 00:00:41]} Qd7 {[%clk 00:08:44]} {[%emt 00:00:08]} 20. Bc3 {[%clk
00:03:55]} {[%emt 00:00:44]} Rad8 {[%clk 00:08:13]} {[%emt 00:00:36]} 21. Nxg5
{[%clk 00:01:31]} {[%emt 00:02:29]} Qxf5 {[%clk 00:04:20]} {[%emt 00:03:57]} 22.
Nh3 {[%clk 00:00:25]} {[%emt 00:01:11]} Qg6 {[%clk 00:03:54]} {[%emt 00:00:32]}
23. Qxg6 {[%clk 00:00:19]} {[%emt 00:00:11]} hxg6 {[%clk 00:03:58]} {[%emt
00:00:02]} 24. Rf1 {[%clk 00:00:14]} {[%emt 00:00:09]} Re2 {[%clk 00:03:27]}
{[%emt 00:00:36]} 25. Nf4 {[%clk 00:00:00]} {[%emt 00:00:16]} Rc2 {[%clk
00:20:05]} {[%emt 00:00:29]} 26. Rac1 0-1

[Event "MCR rapid mládeže 2023 U16"]
[Site "Harachov, Czech Republic"]
[Date "2023.09.09"]
[Round "5.17"]
[White "Honcharov, Makar"]
[Black "Mydlar, Matej"]
[Result "1-0"]
[TimeControl "20min+5s/move"]
[WhiteElo "1593"]
[BlackElo "1711"]

1. e4 {[%clk 00:20:09]} c5 {[%clk 00:20:05]} {[%emt 00:00:05]} 2. Nf3 {[%clk
00:20:13]} {[%emt 00:00:02]} d6 {[%clk 00:19:56]} {[%emt 00:00:14]} 3. d4
{[%clk 00:20:17]} {[%emt 00:00:01]} cxd4 4. Nxd4 {[%clk 00:20:21]} Nf6 {[%clk
00:20:04]} 5. Nc3 {[%clk 00:20:25]} Nc6 {[%clk 00:20:05]} {[%emt 00:00:04]} 6.
Bg5 {[%clk 00:20:28]} {[%emt 00:00:02]} e6 {[%clk 00:20:05]} {[%emt 00:00:05]}
7. Qd2 {[%clk 00:20:20]} {[%emt 00:00:14]} h6 {[%clk 00:19:01]} {[%emt
00:01:09]} 8. Bxf6 {[%clk 00:20:09]} {[%emt 00:00:15]} Qxf6 {[%clk 00:19:02]}
{[%emt 00:00:04]} 9. Ndb5 {[%clk 00:20:13]} {[%emt 00:00:01]} Qd8 {[%clk
00:19:00]} {[%emt 00:00:07]} 10. O-O-O {[%clk 00:20:15]} {[%emt 00:00:04]} a6
{[%clk 00:18:10]} {[%emt 00:00:55]} 11. Nxd6+ {[%clk 00:20:10]} {[%emt
00:00:09]} Qxd6 {[%clk 00:18:11]} {[%emt 00:00:04]} 12. Qxd6 {[%clk 00:20:13]}
{[%emt 00:00:02]} Bxd6 {[%clk 00:18:15]} {[%emt 00:00:02]} 13. Rxd6 {[%clk
00:20:16]} {[%emt 00:00:02]} Ke7 {[%clk 00:18:18]} {[%emt 00:00:01]} 14. Rd2
{[%clk 00:19:56]} {[%emt 00:00:25]} b5 {[%clk 00:18:21]} {[%emt 00:00:02]} 15.
Be2 {[%clk 00:19:52]} {[%emt 00:00:10]} Bb7 {[%clk 00:18:16]} {[%emt 00:00:09]}
16. Rhd1 {[%clk 00:19:44]} {[%emt 00:00:13]} Rhd8 {[%clk 00:18:17]} {[%emt
00:00:04]} 17. f4 {[%clk 00:19:18]} {[%emt 00:00:32]} Rxd2 {[%clk 00:17:42]}
{[%emt 00:00:39]} 18. Rxd2 {[%clk 00:19:20]} {[%emt 00:00:03]} Rc8 {[%clk
00:17:04]} {[%emt 00:00:42]} 19. Bf3 {[%clk 00:18:11]} {[%emt 00:01:15]} Na5
{[%clk 00:16:46]} {[%emt 00:00:22]} 20. Rd3 {[%clk 00:17:45]} {[%emt 00:00:32]}
Nc4 {[%clk 00:16:25]} {[%emt 00:00:26]} 21. b3 {[%clk 00:17:40]} {[%emt
00:00:10]} Na3 {[%clk 00:15:31]} {[%emt 00:00:59]} 22. Kb2 {[%clk 00:16:36]}
{[%emt 00:01:09]} b4 {[%clk 00:15:30]} {[%emt 00:00:06]} 23. h4 {[%clk
00:15:27]} {[%emt 00:01:15]} a5 {[%clk 00:14:59]} {[%emt 00:00:35]} 24. h5
{[%clk 00:14:11]} {[%emt 00:01:21]} Ba6 {[%clk 00:15:03]} {[%emt 00:00:02]} 25.
Re3 {[%clk 00:14:14]} {[%emt 00:00:02]} Rd8 {[%clk 00:14:48]} {[%emt 00:00:18]}
26. Nb1 {[%clk 00:13:40]} {[%emt 00:00:39]} Nxb1 {[%clk 00:11:21]} {[%emt
00:03:33]} 27. Kxb1 {[%clk 00:13:39]} {[%emt 00:00:06]} Rd2 {[%clk 00:11:13]}
{[%emt 00:00:12]} 28. e5 {[%clk 00:12:26]} {[%emt 00:01:20]} Rf2 {[%clk
00:10:39]} {[%emt 00:00:38]} 29. c4 {[%clk 00:10:11]} {[%emt 00:02:21]} Rf1+
{[%clk 00:08:47]} {[%emt 00:01:56]} 30. Kb2 {[%clk 00:10:03]} {[%emt 00:00:13]}
a4 {[%clk 00:08:50]} {[%emt 00:00:03]} 31. Re2 {[%clk 00:09:04]} {[%emt
00:01:03]} a3+ {[%clk 00:08:28]} {[%emt 00:00:27]} 32. Kc2 {[%clk 00:09:07]}
{[%emt 00:00:02]} Ra1 {[%clk 00:08:27]} {[%emt 00:00:06]} 33. Kd3 {[%clk
00:09:11]} {[%emt 00:00:01]} f6 {[%clk 00:05:39]} {[%emt 00:02:53]} 34. Kd4
{[%clk 00:08:59]} {[%emt 00:00:17]} fxe5+ {[%clk 00:05:33]} {[%emt 00:00:11]}
35. fxe5 {[%clk 00:09:03]} {[%emt 00:00:01]} 1-0

[Event "MCR rapid mládeže 2023 U16"]
[Site "Harachov, Czech Republic"]
[Date "2023.09.09"]
[Round "5.18"]
[White "Tejnor, Martin"]
[Black "Walder, Hugo"]
[Result "1-0"]
[TimeControl "20min+5s/move"]
[WhiteElo "1434"]
[BlackElo "1403"]

1. e4 {[%clk 00:20:08]} {[%emt 00:00:02]} e5 {[%clk 00:20:09]} {[%emt
00:00:02]} 2. Nf3 {[%clk 00:20:11]} Nc6 {[%clk 00:20:13]} {[%emt 00:00:02]} 3.
Nc3 {[%clk 00:20:15]} {[%emt 00:00:01]} Nf6 {[%clk 00:20:15]} {[%emt 00:00:03]}
4. d4 {[%clk 00:20:18]} {[%emt 00:00:01]} exd4 {[%clk 00:20:13]} {[%emt
00:00:07]} 5. Nxd4 {[%clk 00:20:22]} {[%emt 00:00:02]} Bc5 {[%clk 00:19:43]}
{[%emt 00:00:35]} 6. Be3 {[%clk 00:20:12]} {[%emt 00:00:14]} Bxd4 {[%clk
00:19:41]} {[%emt 00:00:07]} 7. Bxd4 {[%clk 00:20:10]} {[%emt 00:00:08]} Nxd4
{[%clk 00:19:44]} {[%emt 00:00:02]} 8. Qxd4 {[%clk 00:20:13]} {[%emt 00:00:02]}
d6 {[%clk 00:19:29]} {[%emt 00:00:20]} 9. Bc4 {[%clk 00:20:15]} {[%emt
00:00:03]} O-O {[%clk 00:19:26]} {[%emt 00:00:08]} 10. O-O {[%clk 00:20:18]}
{[%emt 00:00:02]} Bd7 {[%clk 00:18:41]} {[%emt 00:00:50]} 11. Rad1 {[%clk
00:20:16]} {[%emt 00:00:07]} Re8 {[%clk 00:18:26]} {[%emt 00:00:20]} 12. Rfe1
{[%clk 00:20:10]} {[%emt 00:00:11]} Bc6 {[%clk 00:18:23]} {[%emt 00:00:08]} 13.
f3 {[%clk 00:18:28]} {[%emt 00:01:47]} Nd7 {[%clk 00:17:50]} {[%emt 00:00:37]}
14. Bd5 {[%clk 00:17:15]} {[%emt 00:01:19]} Bxd5 {[%clk 00:17:24]} {[%emt
00:00:32]} 15. Qxd5 {[%clk 00:17:14]} {[%emt 00:00:05]} Rb8 {[%clk 00:16:46]}
{[%emt 00:00:43]} 16. Ne2 {[%clk 00:16:08]} {[%emt 00:01:11]} Qf6 {[%clk
00:16:19]} {[%emt 00:00:30]} 17. Qd4 {[%clk 00:15:26]} {[%emt 00:00:49]} Ne5
{[%clk 00:14:58]} {[%emt 00:01:26]} 18. Nc3 {[%clk 00:15:07]} {[%emt 00:00:23]}
Qg6 {[%clk 00:14:45]} {[%emt 00:00:18]} 19. Re3 {[%clk 00:14:14]} {[%emt
00:00:58]} a6 {[%clk 00:14:36]} {[%emt 00:00:14]} 20. b3 {[%clk 00:13:54]}
{[%emt 00:00:25]} Re6 {[%clk 00:14:17]} {[%emt 00:00:24]} 21. Nd5 {[%clk
00:13:28]} {[%emt 00:00:31]} Nc6 {[%clk 00:13:15]} {[%emt 00:01:06]} 22. Qd2
{[%clk 00:13:04]} {[%emt 00:00:28]} Qh6 {[%clk 00:12:04]} {[%emt 00:01:18]} 23.
Nxc7 {[%clk 00:12:42]} {[%emt 00:00:26]} Rg6 {[%clk 00:11:13]} {[%emt
00:00:56]} 24. Nd5 {[%clk 00:12:18]} {[%emt 00:00:29]} Re8 {[%clk 00:10:28]}
{[%emt 00:00:50]} 25. Rd3 {[%clk 00:12:09]} {[%emt 00:00:14]} Qxd2 {[%clk
00:10:10]} {[%emt 00:00:25]} 26. R3xd2 {[%clk 00:12:07]} {[%emt 00:00:06]} Ne5
{[%clk 00:10:13]} {[%emt 00:00:02]} 27. Kf2 {[%clk 00:11:29]} {[%emt 00:00:43]}
Kf8 {[%clk 00:09:44]} {[%emt 00:00:34]} 28. Ne3 {[%clk 00:11:17]} {[%emt
00:00:16]} Rd8 {[%clk 00:09:07]} {[%emt 00:00:43]} 29. Nf5 {[%clk 00:11:17]}
{[%emt 00:00:05]} Rf6 {[%clk 00:08:27]} {[%emt 00:00:45]} 30. Rxd6 {[%clk
00:10:58]} {[%emt 00:00:25]} Rdxd6 {[%clk 00:08:17]} {[%emt 00:00:15]} 31. Rxd6
{[%clk 00:11:00]} {[%emt 00:00:02]} Rxd6 {[%clk 00:08:05]} {[%emt 00:00:17]} 32.
Nxd6 {[%clk 00:11:02]} {[%emt 00:00:02]} b5 {[%clk 00:08:07]} {[%emt 00:00:04]}
33. Ke3 {[%clk 00:11:00]} {[%emt 00:00:07]} Ke7 {[%clk 00:08:10]} {[%emt
00:00:02]} 34. Nf5+ {[%clk 00:11:01]} {[%emt 00:00:04]} Kf6 {[%clk 00:08:13]}
{[%emt 00:00:01]} 35. h3 {[%clk 00:10:44]} {[%emt 00:00:23]} g6 {[%clk
00:08:13]} {[%emt 00:00:04]} 36. Nd4 {[%clk 00:10:28]} {[%emt 00:00:22]} Ke7
{[%clk 00:08:08]} {[%emt 00:00:09]} 37. f4 {[%clk 00:10:26]} {[%emt 00:00:07]}
Nd7 {[%clk 00:08:10]} {[%emt 00:00:03]} 38. Nc6+ {[%clk 00:10:22]} {[%emt
00:00:10]} Kd6 {[%clk 00:08:09]} {[%emt 00:00:05]} 39. Nb4 {[%clk 00:09:31]}
{[%emt 00:00:57]} Nc5 {[%clk 00:08:09]} {[%emt 00:00:05]} 40. Kd4 {[%clk
00:09:08]} {[%emt 00:00:28]} 1-0

[Event "MCR rapid mládeže 2023 U16"]
[Site "Harachov, Czech Republic"]
[Date "2023.09.09"]
[Round "5.19"]
[White "Artamonov, Mikhail"]
[Black "Sochor, Antonin"]
[Result "0-1"]
[TimeControl "20min+5s/move"]
[WhiteElo "1486"]
[BlackElo "1480"]

1. e4 {[%clk 00:20:08]} {[%emt 00:00:01]} e6 {[%clk 00:20:08]} {[%emt
00:00:02]} 2. d4 {[%clk 00:20:12]} {[%emt 00:00:02]} d5 {[%clk 00:20:12]} 3.
Nc3 {[%clk 00:20:15]} {[%emt 00:00:01]} Bb4 {[%clk 00:20:16]} {[%emt 00:00:02]}
4. Nge2 {[%clk 00:20:18]} {[%emt 00:00:02]} Nf6 {[%clk 00:20:14]} {[%emt
00:00:05]} 5. Bg5 {[%clk 00:20:22]} {[%emt 00:00:02]} h6 {[%clk 00:20:13]}
{[%emt 00:00:06]} 6. Bxf6 {[%clk 00:20:13]} {[%emt 00:00:14]} Qxf6 {[%clk
00:20:12]} {[%emt 00:00:06]} 7. e5 {[%clk 00:19:46]} {[%emt 00:00:32]} Qe7
{[%clk 00:20:10]} {[%emt 00:00:06]} 8. a3 {[%clk 00:19:22]} {[%emt 00:00:31]}
Ba5 {[%clk 00:20:11]} {[%emt 00:00:03]} 9. b4 {[%clk 00:18:46]} {[%emt
00:00:41]} Bb6 {[%clk 00:20:11]} {[%emt 00:00:04]} 10. Na4 {[%clk 00:18:46]}
{[%emt 00:00:06]} Bd7 {[%clk 00:20:04]} {[%emt 00:00:13]} 11. Nxb6 {[%clk
00:18:48]} {[%emt 00:00:03]} axb6 {[%clk 00:20:07]} {[%emt 00:00:01]} 12. Nc3
{[%clk 00:18:23]} {[%emt 00:00:30]} c5 {[%clk 00:20:10]} {[%emt 00:00:02]} 13.
bxc5 {[%clk 00:17:49]} {[%emt 00:00:40]} bxc5 {[%clk 00:20:12]} {[%emt
00:00:03]} 14. Be2 {[%clk 00:15:47]} {[%emt 00:02:06]} cxd4 {[%clk 00:20:06]}
{[%emt 00:00:11]} 15. Qxd4 {[%clk 00:15:28]} {[%emt 00:00:23]} Nc6 {[%clk
00:20:08]} {[%emt 00:00:04]} 16. Qf4 {[%clk 00:13:59]} {[%emt 00:01:34]} Rxa3
{[%clk 00:19:22]} {[%emt 00:00:52]} 17. Rxa3 {[%clk 00:13:33]} {[%emt
00:00:31]} Qxa3 {[%clk 00:19:23]} {[%emt 00:00:04]} 18. Nb5 {[%clk 00:12:59]}
{[%emt 00:00:38]} Qa5+ {[%clk 00:18:33]} {[%emt 00:00:47]} 19. c3 {[%clk
00:12:12]} {[%emt 00:01:00]} O-O {[%clk 00:18:04]} {[%emt 00:00:35]} 20. O-O
{[%clk 00:11:14]} {[%emt 00:01:02]} Nxe5 {[%clk 00:17:45]} {[%emt 00:00:23]} 21.
Nd6 {[%clk 00:10:41]} {[%emt 00:00:38]} Qxc3 {[%clk 00:17:12]} {[%emt
00:00:36]} 22. Nxb7 {[%clk 00:10:05]} {[%emt 00:00:43]} Ng6 {[%clk 00:16:55]}
{[%emt 00:00:21]} 23. Qd6 {[%clk 00:09:17]} {[%emt 00:00:54]} Bc6 {[%clk
00:15:59]} {[%emt 00:00:59]} 24. Nc5 {[%clk 00:08:52]} {[%emt 00:00:33]} Be8
{[%clk 00:15:46]} {[%emt 00:00:17]} 25. Bh5 {[%clk 00:07:11]} {[%emt 00:01:46]}
Qe5 {[%clk 00:15:20]} {[%emt 00:00:30]} 26. Qxe5 {[%clk 00:06:52]} {[%emt
00:00:25]} Nxe5 {[%clk 00:15:17]} {[%emt 00:00:08]} 27. f4 {[%clk 00:06:40]}
{[%emt 00:00:17]} Nd7 {[%clk 00:15:19]} {[%emt 00:00:03]} 28. Nd3 {[%clk
00:06:33]} {[%emt 00:00:13]} Nf6 {[%clk 00:15:23]} {[%emt 00:00:01]} 29. Bf3
{[%clk 00:05:58]} {[%emt 00:00:39]} Bb5 {[%clk 00:15:26]} {[%emt 00:00:02]} 30.
Rd1 {[%clk 00:05:59]} {[%emt 00:00:04]} Bxd3 {[%clk 00:15:10]} {[%emt
00:00:21]} 31. Rxd3 {[%clk 00:06:02]} {[%emt 00:00:02]} Rc8 {[%clk 00:15:13]}
{[%emt 00:00:02]} 32. Kf2 {[%clk 00:06:01]} {[%emt 00:00:06]} Ne4+ {[%clk
00:15:16]} {[%emt 00:00:02]} 33. Ke3 {[%clk 00:05:37]} {[%emt 00:00:28]} f5
{[%clk 00:15:17]} {[%emt 00:00:05]} 34. g4 {[%clk 00:05:20]} {[%emt 00:00:22]}
g6 {[%clk 00:15:00]} {[%emt 00:00:21]} 35. h4 {[%clk 00:04:50]} {[%emt
00:00:36]} Kf7 {[%clk 00:14:33]} {[%emt 00:00:28]} 36. g5 {[%clk 00:04:43]}
{[%emt 00:00:16]} hxg5 {[%clk 00:14:34]} {[%emt 00:00:04]} 37. hxg5 {[%clk
00:04:43]} {[%emt 00:00:06]} Ke7 {[%clk 00:14:23]} {[%emt 00:00:15]} 38. Bg2
{[%clk 00:04:17]} {[%emt 00:00:31]} Kd6 {[%clk 00:14:04]} {[%emt 00:00:23]} 39.
Bf3 {[%clk 00:04:18]} {[%emt 00:00:05]} Rc4 {[%clk 00:13:45]} {[%emt 00:00:21]}
40. Bg2 {[%clk 00:04:03]} {[%emt 00:00:23]} e5 {[%clk 00:13:44]} {[%emt
00:00:07]} 41. fxe5+ {[%clk 00:04:00]} {[%emt 00:00:07]} Kxe5 {[%clk 00:13:42]}
{[%emt 00:00:07]} 42. Bh1 {[%clk 00:03:57]} {[%emt 00:00:08]} Rc3 {[%clk
00:12:56]} {[%emt 00:00:50]} 43. Bxe4 {[%clk 00:03:55]} {[%emt 00:00:08]} d4+
{[%clk 00:12:59]} {[%emt 00:00:03]} 44. Kd2 {[%clk 00:03:37]} {[%emt 00:00:23]}
fxe4 {[%clk 00:12:57]} {[%emt 00:00:07]} 45. Rxc3 {[%clk 00:03:39]} {[%emt
00:00:02]} dxc3+ {[%clk 00:12:59]} {[%emt 00:00:02]} 46. Kxc3 {[%clk 00:03:44]}
Kf4 {[%clk 00:13:02]} {[%emt 00:00:03]} 47. Kd2 {[%clk 00:03:48]} {[%emt
00:00:01]} Kxg5 {[%clk 00:13:06]} {[%emt 00:00:02]} 48. Ke1 {[%clk 00:03:52]}
{[%emt 00:00:01]} Kf4 {[%clk 00:13:09]} {[%emt 00:00:02]} 49. Kf2 {[%clk
00:03:55]} {[%emt 00:00:01]} e3+ {[%clk 00:13:10]} {[%emt 00:00:03]} 50. Ke1
{[%clk 00:03:59]} {[%emt 00:00:02]} Kf3 {[%clk 00:13:14]} {[%emt 00:00:02]} 51.
Kf1 {[%clk 00:04:03]} e2+ {[%clk 00:13:14]} {[%emt 00:00:05]} 52. Ke1 {[%clk
00:04:07]} {[%emt 00:00:01]} g5 {[%clk 00:13:19]} {[%emt 00:00:01]} 53. Kd2
{[%clk 00:04:11]} {[%emt 00:00:01]} Kf2 {[%clk 00:13:23]} {[%emt 00:00:01]} 0-1

[Event "MCR rapid mládeže 2023 U16"]
[Site "Harachov, Czech Republic"]
[Date "2023.09.09"]
[Round "5.20"]
[White "Boff, Ondrej"]
[Black "Babula, Tomas"]
[Result "1-0"]
[TimeControl "20min+5s/move"]
[WhiteElo "1486"]
[BlackElo "1266"]

1. e4 {[%clk 00:20:06]} {[%emt 00:00:03]} c5 {[%clk 00:20:09]} {[%emt
00:00:02]} 2. Nf3 {[%clk 00:20:09]} {[%emt 00:00:01]} d6 {[%clk 00:20:13]}
{[%emt 00:00:01]} 3. Bb5+ {[%clk 00:20:12]} {[%emt 00:00:02]} Bd7 {[%clk
00:20:17]} {[%emt 00:00:02]} 4. Bxd7+ {[%clk 00:20:15]} {[%emt 00:00:02]} Nxd7
{[%clk 00:20:20]} {[%emt 00:00:02]} 5. c4 {[%clk 00:19:56]} {[%emt 00:00:22]}
Ngf6 {[%clk 00:19:55]} {[%emt 00:00:30]} 6. Nc3 {[%clk 00:19:56]} {[%emt
00:00:05]} g6 {[%clk 00:19:57]} {[%emt 00:00:04]} 7. d4 {[%clk 00:19:56]}
{[%emt 00:00:05]} cxd4 {[%clk 00:19:47]} {[%emt 00:00:15]} 8. Nxd4 {[%clk
00:19:57]} {[%emt 00:00:03]} Bg7 {[%clk 00:19:40]} {[%emt 00:00:13]} 9. Be3
{[%clk 00:19:29]} {[%emt 00:00:33]} O-O {[%clk 00:19:39]} {[%emt 00:00:06]} 10.
O-O {[%clk 00:19:31]} {[%emt 00:00:03]} Nb6 {[%clk 00:18:44]} {[%emt 00:01:01]}
11. b3 {[%clk 00:19:19]} {[%emt 00:00:16]} Nfd7 {[%clk 00:17:47]} {[%emt
00:01:02]} 12. Rc1 {[%clk 00:18:55]} {[%emt 00:00:29]} Rc8 {[%clk 00:15:58]}
{[%emt 00:01:54]} 13. Qd2 {[%clk 00:18:22]} {[%emt 00:00:37]} Nc5 {[%clk
00:14:52]} {[%emt 00:01:12]} 14. Bh6 {[%clk 00:17:02]} {[%emt 00:01:22]} Qd7
{[%clk 00:14:14]} {[%emt 00:00:45]} 15. Bxg7 {[%clk 00:16:54]} {[%emt
00:00:13]} Kxg7 {[%clk 00:14:18]} {[%emt 00:00:02]} 16. Rfd1 {[%clk 00:16:32]}
{[%emt 00:00:26]} Qg4 {[%clk 00:13:08]} {[%emt 00:01:15]} 17. f3 {[%clk
00:16:14]} {[%emt 00:00:24]} Qd7 {[%clk 00:12:27]} {[%emt 00:00:46]} 18. Qe3
{[%clk 00:15:13]} {[%emt 00:01:04]} a6 {[%clk 00:11:36]} {[%emt 00:00:58]} 19.
Nc2 {[%clk 00:14:31]} {[%emt 00:00:45]} Qc7 {[%clk 00:11:08]} {[%emt 00:00:35]}
20. Nb4 {[%clk 00:14:18]} {[%emt 00:00:17]} Nbd7 {[%clk 00:10:27]} {[%emt
00:00:46]} 21. Ncd5 {[%clk 00:13:51]} {[%emt 00:00:32]} Qd8 {[%clk 00:10:04]}
{[%emt 00:00:28]} 22. Nd3 {[%clk 00:13:27]} {[%emt 00:00:29]} Nxd3 {[%clk
00:09:32]} {[%emt 00:00:37]} 23. Qxd3 {[%clk 00:13:24]} {[%emt 00:00:07]} Kg8
{[%clk 00:09:04]} {[%emt 00:00:34]} 24. Qe3 {[%clk 00:12:22]} {[%emt 00:01:06]}
Rc6 {[%clk 00:07:41]} {[%emt 00:01:29]} 25. Qa7 {[%clk 00:10:17]} {[%emt
00:02:09]} b5 {[%clk 00:03:58]} {[%emt 00:03:49]} 26. cxb5 {[%clk 00:09:59]}
{[%emt 00:00:22]} Rxc1 {[%clk 00:03:52]} {[%emt 00:00:12]} 27. Rxc1 {[%clk
00:10:01]} {[%emt 00:00:03]} axb5 {[%clk 00:03:44]} {[%emt 00:00:14]} 28. Rc7
{[%clk 00:09:27]} {[%emt 00:00:38]} Nf6 {[%clk 00:02:22]} {[%emt 00:01:28]} 29.
Nxe7+ {[%clk 00:08:40]} {[%emt 00:00:51]} Kg7 {[%clk 00:02:15]} {[%emt
00:00:12]} 30. Nc6 {[%clk 00:07:52]} {[%emt 00:00:49]} Qa8 {[%clk 00:02:01]}
{[%emt 00:00:22]} 31. Kf2 {[%clk 00:06:49]} {[%emt 00:01:08]} Rc8 {[%clk
00:01:31]} {[%emt 00:00:35]} 32. Rxf7+ {[%clk 00:06:28]} {[%emt 00:00:26]} 1-0